Cogmind - Beta 15 @@@ ROGUE MODE // 2025.09.30 @ 09:51:12 Player: nam192 Result: Destroyed by G-34 Mercenary with Small Laser Performance ------------- Evolutions (0) 0 Regions Visited (1) 200 Robots Destroyed (0) 0 Value Destroyed (0) 0 Prototype IDs (1) 20 Alien Tech Used (0) 0 Bonus (0) 0 TOTAL SCORE: 220 Bonus ------- None Cogmind --------- Core Integrity 0/250 Matter 18/300 Energy 100/100 System Corruption 0% Temperature Cool (6) Movement Core (500) Ox9 Location -10/Materials Parts ------- > --- POWER (1) -------- (None) > --- PROPULSION (2) --- (None) > --- UTILITY (2) ------ Medium Storage Unit Large Storage Unit > --- WEAPON (2) ------- (None) > --- INVENTORY (15) --- Light Treads Aluminum Leg Aluminum Leg Improved Aluminum Leg Improved Aluminum Leg Medium Laser Improved Assault Rifle Improved Light Cannon Improved Light Cannon Peak State ------------ > --- POWER ------------ Ion Engine > --- PROPULSION ------- Wheel Wheel > --- UTILITY ---------- Medium Storage Unit Large Storage Unit > --- WEAPON ----------- EM Pulse Gun Light Assault Rifle > --- INVENTORY -------- Light Ion Engine Light Treads Light Treads Aluminum Leg Aluminum Leg Improved Aluminum Leg Improved Aluminum Leg Medium Laser Improved Assault Rifle Improved Assault Rifle Improved Light Cannon Improved Light Cannon [Rating: 9] Favorites ----------- Power Ion Engine Engine Ion Engine Propulsion Wheel Treads Light Treads Wheel Wheel Utility Medium Storage Unit Storage Medium Storage Unit Weapon Light Assault Rifle Energy Gun EM Pulse Gun Ballistic Gun Light Assault Rifle Build | -11 -10 ------- Run | Yrd Mat Slots Evolved . | . . Power . | . . Propulsion . | . . Utility . | . . Weapon . | . . Parts Attached 10 | 6 4 Power 1 | 1 . Engine 1 | 1 . Core . | . . Reactor . | . . Propulsion 3 | 2 1 Treads 1 | . 1 Leg . | . . Wheel 2 | 2 . Hover . | . . Flight . | . . Utility 3 | 1 2 Device . | . . Storage 3 | 1 2 Processor . | . . Hackware . | . . Protection . | . . Artifact . | . . Weapon 3 | 2 1 Energy Gun 1 | 1 . Energy Cannon . | . . Ballistic Gun 2 | 1 1 Ballistic Cannon . | . . Launcher . | . . Special Weapon . | . . Impact Weapon . | . . Slashing Weapon . | . . Piercing Weapon . | . . Special Melee Weapon . | . . Unidentified Prototypes 1 | . 1 Parts Lost 7 | . 7 Power 1 | . 1 Propulsion 3 | . 3 Utility . | . . Weapon 3 | . 3 Highest Loss Streak 7 | . 7 To Critical Strikes . | . . Average Backups 7 | 2 9 Power . | . . Propulsion 4 | 1 4 Utility . | . . Weapon 3 | . 4 Tool/Special . | . . Unused Backups 10 | . 10 Power 1 | . 1 Propulsion 5 | . 5 Utility . | . . Weapon 4 | . 4 Tool/Special . | . . Average Slot Usage (%) 90 | . 90 Engine 11 | . 11 Treads 2 | . 2 Wheel 22 | . 22 Storage 25 | . 25 Energy Gun 11 | . 11 Ballistic Gun 15 | . 15 Peak Build Rating 9 | 6 9 Average Rating 7 | 4 7 On Entrance 3 | . 6 Naked Turns . | . . Heaviest Build 38 | 13 38 Greatest Support 20 | 20 20 Greatest Overweight (x) 10 | . 10 Average Overweight (x) . | . 1 Largest Inventory Capacity 15 | 8 15 Average Capacity 12 | 6 13 Most Carried 12 | 6 12 Average Carried 8 | 2 9 Final Capacity 15 | 8 15 Final Carried 9 | 6 9 Class Distribution -------------------- 100% | Mutant Dominant Class ---------------- Mutant | -10/Materials Resources | -11 -10 ----------- Run | Yrd Mat Matter Collected . | . . Remotely . | . . Salvage Created . | . . Parts . | . . Haulers Intercepted . | . . Recyclers Shooed . | . . Parts Field Recycled . | . . Retrieved Matter . | . . Parts Self-Destructed . | . . Prevented . | . . Kills | -11 -10 ------- Run | Yrd Mat Combat Hostiles Destroyed . | . . Classes Destroyed . | . . Best Kill Streak . | . . Combat Bots Only . | . . Max Kills in Single Turn . | . . Gunslinging . | . . Exploded . | . . Melee . | . . Uniques/NPCs Destroyed . | . . Combat | -11 -10 -------- Run | Yrd Mat Hostile Shots Fired 106 | . 106 Missed 35 | . 35 Hits 71 | . 71 Projectile 71 | . 71 Critical Strikes 2 | . 2 Damage Taken 958 | . 958 Core 260 | . 260 Absorbed by Shields . | . . Core Remaining (%) 100 | 100 . Volleys Fired 11 | . 11 Largest 2 | . 2 Hottest 60 | . 60 Shots Fired 21 | . 21 Gun 21 | . 21 Cannon . | . . Launcher . | . . Special . | . . Kinetic 13 | . 13 Thermal . | . . Explosive . | . . Electromagnetic 8 | . 8 Robot Hit Streak 4 | . 4 Robot Miss Streak 3 | . 3 Penetration Max . | . . Secondary Targets . | . . Shots Hit Robots 10 | . 10 Core Hits 3 | . 3 Critical Kills . | . . Critical Parts Destroyed . | . . Critical Strikes . | . . Melee Attacks . | . . Impact . | . . Slashing . | . . Piercing . | . . Sneak Attacks . | . . Combat Hostiles . | . . Follow-up Attacks . | . . Damage Inflicted 115 | . 115 Guns 115 | . 115 Cannons . | . . Explosions . | . . Melee . | . . Ramming . | . . Kinetic 75 | . 75 Thermal . | . . Explosive . | . . Electromagnetic 40 | . 40 Impact . | . . Slashing . | . . Piercing . | . . Highest Corruption . | . . Average Corruption . | . . Corruption Purged . | . . Corruption Blocked . | . . Overload Shots . | . . Overflow Damage . | . . Projectiles . | . . Explosions . | . . Melee . | . . Knockbacks . | . . Impact . | . . Kinetic . | . . Secondary . | . . Self-Inflicted Damage . | . . Shots . | . . Rammed . | . . Targets Rammed . | . . Kicked . | . . Crushed . | . . Highest Temperature 51 | . 51 Average Temperature 20 | . 20 Received Heat Transfer 588 | . 588 Siege Activations . | . . Martial Activations . | . . Shielding Activations . | . . Robots Disrupted . | . . Combat Hostiles . | . . Robots Corrupted . | . . Combat Hostiles . | . . Parts Fried . | . . Impact Corruptions . | . . Robots Melted . | . . Combat Hostiles . | . . Parts Melted . | . . Heat Transferred . | . . Parts Sabotaged . | . . Parts Stolen . | . . Parts Stripped . | . . Power Chain Reactions . | . . Alert | -11 -10 ------- Run | Yrd Mat Maximum Alert Level . | . . Low Security (%) 100 | 100 100 Level 1 . | . . Level 2 . | . . Level 3 . | . . Level 4 . | . . Level 5 . | . . High Security . | . . Max Security . | . . Peak Influence . | . . Initial . | . . Average . | . . Influence Increases . | . . Influence Decreases . | . . Squads Dispatched . | . . Investigation . | . . Extermination . | . . Reinforcement . | . . Assault . | . . Garrison . | . . Intercept . | . . Searches Triggered . | . . Construction Impeded . | . . Haulers Reinforced . | . . Active Scanning Responses . | . . Cargo Convoy Interrupts . | . . Stealth | -11 -10 --------- Run | Yrd Mat Distress Signals 1 | . 1 Communications Jammed . | . . Distress Signals . | . . Times Spotted 7 | . 7 Peak Tracking Total 7 | . 7 Tactical Retreats . | . . Traps | -11 -10 ------- Run | Yrd Mat Traps Triggered . | . . Indirectly . | . . Trap Hack Attempts . | . . Triggered . | . . Disarmed . | . . Reprogrammed . | . . Reused . | . . Traps Extracted . | . . Installed . | . . Triggered . | . . Machines | -11 -10 ---------- Run | Yrd Mat Machines Disabled . | . . Max in Single Turn . | . . Machines Repaired . | . . Machines Dismantled . | . . Machines Sabotaged . | . . Overloaded Fab Kills . | . . Hacking | -11 -10 --------- Run | Yrd Mat Machines Accessed . | . . Terminals . | . . Fabricators . | . . Repair Stations . | . . Recycling Units . | . . Scanalyzers . | . . Garrison Access . | . . Total Hacks . | . . Successful . | . . Failed . | . . Catastrophic . | . . Database Lockouts . | . . Manual . | . . Terminals . | . . Fabricators . | . . Repair Stations . | . . Recycling Units . | . . Scanalyzers . | . . Garrison Access . | . . Terminal Hacks . | . . Fabricator Hacks . | . . Repair Station Hacks . | . . Recycling Unit Hacks . | . . Scanalyzer . | . . Garrison Access Hacks . | . . Unauthorized Hacks . | . . Terminals . | . . Fabricators . | . . Repair Stations . | . . Recycling Units . | . . Scanalyzers . | . . Garrison Access . | . . Data Cores Recovered . | . . Used . | . . Hacking Detections . | . . Full Trace Events . | . . Feedback Events . | . . Feedback Blocked . | . . Robot Schematics Acquired . | . . Robots Built . | . . Authchips . | . . Time . | . . Total Robot Build Rating . | . . Part Schematics Acquired . | . . Parts Built . | . . Authchips . | . . Time . | . . Total Part Build Rating . | . . Parts Repaired . | . . Time . | . . Parts Recycled . | . . Recycled Matter . | . . Retrieved Matter . | . . Retrieved Components . | . . Parts Scanalyzed . | . . Part Schematics Acquired . | . . Parts Damaged . | . . Bothacking | -11 -10 ------------ Run | Yrd Mat Used RIF Installer . | . . Robots Hacked . | . . Non-combat . | . . Combat . | . . Robot Hacks Applied . | . . Relay Couplers Released . | . . Fabnet Peak Effective % . | . . Robots Rewired . | . . Allies Hacked . | . . Hacks Repelled . | . . Allies | -11 -10 -------- Run | Yrd Mat Total Allies . | . . Largest Group . | . . Highest-Rated Group . | . . Highest-Rated Ally . | . . Total Orders . | . . Ally Attacks . | . . Total Damage . | . . Kills . | . . Allies Corrupted . | . . Allies Melted . | . . Intel | -11 -10 ------- Run | Yrd Mat Active Infowar (turns) . | . . Robot Analysis Total . | . . Derelict Logs Recovered . | . . Drone Launches . | . . Drone Recoveries . | . . Exploration | -11 -10 ------------- Run | Yrd Mat Turns Passed 194 | 46 148 Spaces Moved 127 | 41 86 Core 6 | 4 2 Treads 8 | . 8 Legs . | . . Wheels 113 | 37 76 Hover . | . . Flight . | . . Fastest Speed 50 | 50 80 Average Speed 103 | 77 115 Slowest Speed 550 | 80 550 Overloaded Moves . | . . Propulsion Burnouts . | . . Robots Hopped . | . . Potential Cave-ins . | . . Cave-ins Triggered . | . . Exploration Rate (%) 5 | 4 7 Regions Visited 1 Branch Regions . Pre-discovered Areas . | . . Known Exits Taken . | . . Unknown Exits Taken 1 | 1 . Scrap Searched . | . . Spaces Dug . | . . Terrain Destroyed . | . . Melee . | . . Projectile . | . . AOE . | . . Terrain Rammed . | . . Walls Destroyed . | . . Machines Disabled . | . . Actions | -11 -10 --------- Run | Yrd Mat Total 171 | 52 119 Wait 8 | . 8 Move 126 | 40 86 Hop . | . . Pick Up 13 | 6 7 Fast Attach 8 | 6 2 Attach 1 | . 1 Detach . | . . Swap 1 | . 1 Drop 3 | . 3 Fire 11 | . 11 Melee . | . . Ram . | . . Kick . | . . Crush . | . . Escape Stasis . | . . Rewire . | . . Trap . | . . Miscellaneous . | . . Route ------- -11/Scrapyard -10/Materials History --------- Turn | Location | Event 10 | -11/Scrapyard | Discovered new exit (range 16) 47 | -11/Scrapyard | Entered Materials 179 | -10/Materials | Core integrity fell below 50% 192 | -10/Materials | Core integrity fell below 20% 195 | -10/Materials | Destroyed by G-34 Mercenary with Small Laser Last Messages --------------- Acquired Lgt. Treads. Ion Engine destroyed. EM Pulse Gun destroyed. K-01 Serf collects debris. Identified Imp. Assault Rifle. M-13 Machinist destroyed. K-01 Serf collects debris. R-06 Scavenger collects Wheel. [Achievement: Oops] K-01 Serf collects debris. Wheel destroyed. R-06 Scavenger collects Aluminum Leg. Dropped Lgt. Ion Engine. R-06 Scavenger collects Wheel. G-34 Mercenary destroyed. Imp. Assault Rifle destroyed. Critical hit (Burn: +37). Lgt. Treads destroyed. Lgt. Assault Rifle destroyed. Critical hit (Burn: +37). Map ----- +----------------------------------------------------+ | | | | | | | | | | | | | | | | | | | | | ?????????????????????????????????????????????????? | | ?????????????????????????????????????????????????? | | ?????????????????????????????????????????????????? | | ?????????????????????????????????????????????????? | | ?????????????????????????????????????????????????? | | ?????????????????????????????????????????????????? | | ?????????????????????????????????????????????????? | | ?????????????????????????????????????????????????? | | ?????????????????????????????????????????????????? | | ???????????????????###############???????????????? | | ???????????????????#]] ## !!##??????????????? | | ???????????????????# #! !#??????????????? | | ???????????????????# # g #??????????????? | | ???????????????????#[[ # #??????????????? | | ???????????????????# = g= ##### """??????? | | ???????????????????# = @ =g! + ??? | | ???????????????????##### *[*g ##### ??? | | ???????????????????????########% #??????????????? | | ??????????????????????????????# #??????????????? | | ??????????????????????????????# #??????????????? | | ??????????????????????????????# + ?????????????? | | ??????????????????????????????# # ????????????? | | ??????????????????????????????# # ???????????? | | ??????????????????????????????# #? ??????????? | | ??????????????????????????????? #? #?????????? | | ??????????????????????????????? #?? #?????????? | | ??????????????????????????????? #?? #?????????? | | ??????????????????????????????? #??? #?????????? | | ??????????????????????????????? #??????????????? | | ??????????????????????????????? #??????????????? | | ??????????????????????????????? ???????????????? | | ?????????????????????????????????????????????????? | | ?????????????????????????????????????????????????? | | ?????????????????????????????????????????????????? | | ?????????????????????????????????????????????????? | | ?????????????????????????????????????????????????? | | ?????????????????????????????????????????????????? | | ?????????????????????????????????????????????????? | | ?????????????????????????????????????????????????? | | ?????????????????????????????????????????????????? | +----------------------------------------------------+ Best States ------------- Heat Dissipation 25 Energy Generation 10 Energy Capacity 250 Matter Stores 70 Matter Capacity 300 Sight Range 16 Terrain Scan Density 10 Evasion (%) 44 Recoil Reduction 1 Item Schematics ----------------- None Robot Schematics ------------------ None Fabricated ------------ Nothing Repaired ---------- Nothing Alien Tech Used ----------------- None Achievements -------------- Oops Challenges ------------ None Game ------ Seed PowerDirtyReconfigurator Manual? 0 Play Time 00:07:15 Cumulative 3.6 hours Start 2025.09.30 @ 09:46:53 End 2025.09.30 @ 09:51:12 Sessions 1 Manual Loads 0 Difficulty Rogue Special Mode None Game No. 7 Rogue 4 Adventurer 3 Explorer 0 Win Type - Total 0 Types 0/0/0/0/0/0/0/0/0/0 Lore% 1 Gallery% 9 Achievement% 10 Wizard Run 0 Options --------- Layout 0 ASCII 0 Keyboard 1 Movement Arrows Keybinds 0 Fullscreen 1 Font 24/Smallcaps Map View 76x50 Zoom Use 0% Tactical HUD 0 Map Filters NONE Filters NONE Steam 1 RUN: da39de44-68d6-48a9-94c9-8e10eee38cd1